Cogmind - Beta 14 @@@ ROGUE MODE // 2024.10.11 @ 17:28:03 Player: Schrodingersyndrome Result: Destroyed by G-47 Trooper with Particle Gun Performance ------------- Evolutions (2) 1000 Regions Visited (5) 1000 Robots Destroyed (59) 295 Value Destroyed (1617) 1617 Prototype IDs (0) 0 Alien Tech Used (0) 0 Bonus (342) 342 TOTAL SCORE: 4254 Bonus ------- High Alert Combat Kills 142 Entered Garrisons 200 Cogmind --------- Core Integrity 0/550 Matter 12/300 Energy 100/100 System Corruption 0% Temperature Cool (18) Movement Rolling (115) Ox1 Location -8/Garrison Parts ------- > --- POWER (1) -------- (None) > --- PROPULSION (4) --- Armored Huge Wheel Armored Huge Wheel > --- UTILITY (4) ------ Huge Storage Unit Improved Signal Interpreter System Shield > --- WEAPON (2) ------- Assault Rifle > --- INVENTORY (25) --- Light Ion Engine Deuterium Engine Wheel Armored Huge Wheel Armored Huge Wheel Cryofiber Web Cryofiber Web Large Storage Unit Structural Scanner Advanced Visual Processing Unit Advanced Visual Processing Unit Improved Terrain Scanner Terrain Scan Processor Seismic Detector Transport Network Coupler Gatling Laser EM Pulse Cannon Missile Launcher Peak State ------------ > --- POWER ------------ Deuterium Engine > --- PROPULSION ------- Armored Huge Wheel Armored Huge Wheel > --- UTILITY ---------- Huge Storage Unit Sensor Array Improved Signal Interpreter System Shield > --- WEAPON ----------- EM Pulse Gun Missile Launcher > --- INVENTORY -------- Light Ion Engine Deuterium Engine Deuterium Engine Wheel Armored Huge Wheel Armored Huge Wheel Cryofiber Web Cryofiber Web Large Storage Unit Structural Scanner Advanced Visual Processing Unit Advanced Visual Processing Unit Sensor Array Improved Terrain Scanner Terrain Scan Processor Seismic Detector Transport Network Coupler Gatling Laser Gatling Laser EM Pulse Cannon Beam Cannon Assault Rifle Missile Launcher [Rating: 37] Favorites ----------- Power Ion Engine Engine Ion Engine Power Core Light Nuclear Core Propulsion Wheel Wheel Wheel Utility Huge Storage Unit Device Sensor Array Storage Huge Storage Unit Processor Improved Signal Interpreter Hackware System Shield Weapon Beam Cannon Energy Gun EM Pulse Gun Energy Cannon Beam Cannon Ballistic Gun Light Assault Rifle Launcher Mini Grenade Launcher Build | -11 -10 -9 -9 -8 -8 ------- Run | Yrd Mat Mat Min Mat Gar Slots Evolved 4 | . . 2 . 2 . Power . | . . . . . . Propulsion 2 | . . 2 . . . Utility 2 | . . . . 2 . Weapon . | . . . . . . Parts Attached 55 | 8 12 4 5 21 5 Power 7 | 1 . 1 1 4 . Engine 6 | 1 . 1 1 3 . Core 1 | . . . . 1 . Reactor . | . . . . . . Propulsion 16 | 2 3 2 3 6 . Treads . | . . . . . . Leg . | . . . . . . Wheel 16 | 2 3 2 3 6 . Hover . | . . . . . . Flight . | . . . . . . Utility 15 | 3 5 . . 6 1 Device 8 | 1 3 . . 3 1 Storage 4 | 2 2 . . . . Processor 2 | . . . . 2 . Hackware 1 | . . . . 1 . Protection . | . . . . . . Artifact . | . . . . . . Weapon 17 | 2 4 1 1 5 4 Energy Gun 3 | . 1 . . 2 . Energy Cannon 4 | . 1 . 1 1 1 Ballistic Gun 6 | 2 2 . . . 2 Ballistic Cannon . | . . . . . . Launcher 4 | . . 1 . 2 1 Special Weapon . | . . . . . . Impact Weapon . | . . . . . . Slashing Weapon . | . . . . . . Piercing Weapon . | . . . . . . Special Melee Weapon . | . . . . . . Unidentified Prototypes . | . . . . . . Parts Lost 16 | . 3 . . 9 4 Power 3 | . . . . 2 1 Propulsion 2 | . 1 . . 1 . Utility 4 | . 1 . . 2 1 Weapon 7 | . 1 . . 4 2 Highest Loss Streak 3 | . 2 . . 3 3 To Critical Strikes . | . . . . . . Average Slot Usage (%) 93 | . 97 100 100 89 77 Engine 9 | . 14 11 11 4 9 Core 1 | . . . . 3 . Wheel 31 | . 27 44 44 30 18 Device 11 | . 12 11 11 10 8 Storage 11 | . 14 11 11 9 9 Processor 3 | . . . . 9 9 Hackware 2 | . . . . 5 9 Energy Gun 2 | . 3 . . 4 . Energy Cannon 7 | . 8 11 11 2 8 Ballistic Gun 6 | . 15 8 . . 6 Launcher 4 | . . 2 11 9 . Peak Build Rating 37 | 8 9 16 16 37 36 Average Rating 16 | 6 8 14 15 24 33 On Entrance 13 | . 7 9 16 14 34 Naked Turns . | . . . . . . Heaviest Build 99 | 17 91 95 94 99 99 Greatest Support 56 | 32 32 52 52 56 56 Greatest Overweight (x) 5 | . 5 1 1 3 1 Average Overweight (x) 1 | . 2 1 1 1 1 Largest Inventory Capacity 25 | 8 25 25 25 25 25 Average Capacity 23 | 7 22 25 25 25 25 Most Carried 25 | 8 22 25 25 25 22 Average Carried 18 | 4 13 22 24 22 20 Final Capacity 25 | 8 25 25 25 25 25 Final Carried 25 | 7 22 25 25 23 20 Class Distribution -------------------- 85% | Mutant 11% | Scavenger-Skirmisher Dominant Class ---------------- Mutant | -10/Materials Mutant | -9/Materials Mutant | -9/Mines Mutant | -8/Materials Mutant | -8/Garrison Resources | -11 -10 -9 -9 -8 -8 ----------- Run | Yrd Mat Mat Min Mat Gar Matter Collected 952 | 314 135 . 180 323 . Remotely . | . . . . . . Salvage Created 1621 | 217 547 . 12 843 2 Parts 91 | 11 32 . . 45 3 Haulers Intercepted 2 | . 2 . . . . Recyclers Shooed 1 | . 1 . . . . Parts Field Recycled . | . . . . . . Retrieved Matter . | . . . . . . Parts Self-Destructed . | . . . . . . Prevented . | . . . . . . Kills | -11 -10 -9 -9 -8 -8 ------- Run | Yrd Mat Mat Min Mat Gar Combat Hostiles Destroyed 38 | . 8 . 5 22 3 Guns 3 | . 2 . . 1 . Cannons 9 | . 4 . 1 3 1 AOE 24 | . 2 . 4 16 2 Classes Destroyed 12 | 2 6 . 1 3 . Worker 2 | . 1 . . 1 . Builder 5 | . 1 . . 4 . Tunneler 7 | 5 1 . . 1 . Hauler 2 | . 2 . . . . Recycler 5 | 1 2 . . 2 . Watcher 5 | . 3 . . 2 . Swarmer 10 | . 3 . . 4 3 Grunt 18 | . 5 . . 13 . Brawler 1 | . . . . 1 . Sentry 3 | . . . . 3 . Hunter 1 | . . . . 1 . Assembled 5 | . . . 5 . . Best Kill Streak 10 | 2 6 . 2 10 3 Combat Bots Only 6 | . 4 . 2 6 3 Max Kills in Single Turn 4 | 1 2 . 2 4 2 Gunslinging . | . . . . . . Exploded 2 | . 2 . 2 2 2 Melee . | . . . . . . Uniques/NPCs Destroyed . | . . . . . . Combat | -11 -10 -9 -9 -8 -8 -------- Run | Yrd Mat Mat Min Mat Gar Hostile Shots Fired 246 | . 54 11 15 110 56 Missed 78 | . 18 1 5 37 17 Damage Taken 2514 | . 474 130 136 1158 616 Core 768 | . 150 37 25 374 182 Absorbed by Shields . | . . . . . . Core Remaining (%) 74 | 100 40 . 84 . . Volleys Fired 177 | 17 66 3 15 64 12 Largest 2 | 2 2 1 1 2 1 Hottest 80 | 40 80 60 60 76 60 Shots Fired 209 | 34 71 3 15 74 12 Gun 90 | 34 26 . . 26 4 Cannon 74 | . 45 3 6 13 7 Launcher 45 | . . . 9 35 1 Special . | . . . . . . Kinetic 59 | 34 21 . . . 4 Thermal 61 | . 45 3 6 . 7 Explosive 45 | . . . 9 35 1 Electromagnetic 44 | . 5 . . 39 . Robot Hit Streak 16 | 11 8 1 3 16 4 Robot Miss Streak 5 | 2 5 2 5 3 1 Penetration Max . | . . . . . . Secondary Targets . | . . . . . . Shots Hit Robots 134 | 27 46 1 5 49 6 Core Hits 108 | 12 22 . 5 63 6 Critical Kills 1 | 1 . . . . . Critical Parts Destroyed 1 | 1 . . . . . Critical Strikes 2 | 2 . . . . . Destroy 2 | 2 . . . . . Melee Attacks . | . . . . . . Impact . | . . . . . . Slashing . | . . . . . . Piercing . | . . . . . . Sneak Attacks . | . . . . . . Combat Hostiles . | . . . . . . Follow-up Attacks . | . . . . . . Damage Inflicted 4777 | 217 894 17 364 2971 314 Guns 697 | 217 191 . . 277 12 Cannons 1069 | . 527 17 70 369 86 Explosions 2999 | . 176 . 294 2325 204 Melee . | . . . . . . Ramming 12 | . . . . . 12 Kinetic 380 | 217 151 . . . 12 Thermal 911 | . 703 17 70 35 86 Explosive 2788 | . . . 294 2290 204 Electromagnetic 686 | . 40 . . 646 . Impact . | . . . . . . Slashing . | . . . . . . Piercing . | . . . . . . Highest Corruption . | . . . . . . Average Corruption . | . . . . . . Corruption Purged . | . . . . . . Corruption Blocked . | . . . . . . Overload Shots . | . . . . . . Overflow Damage 164 | . 6 . 50 69 39 Projectiles . | . . . . . . Explosions 164 | . 6 . 50 69 39 Melee . | . . . . . . Knockbacks . | . . . . . . Impact . | . . . . . . Kinetic . | . . . . . . Secondary . | . . . . . . Self-Inflicted Damage 125 | . 51 . . 69 5 Shots 5 | . 1 . . 4 . Rammed 3 | . . . . . 3 Targets Rammed 3 | . . . . . 3 Kicked . | . . . . . . Crushed . | . . . . . . Highest Temperature 300 | . 300 48 80 89 68 Average Temperature 55 | . 77 24 34 27 21 Received Heat Transfer 1127 | . 204 57 20 495 351 Siege Activations . | . . . . . . Robots Corrupted 2 | . . . . 2 . Combat Hostiles 2 | . . . . 2 . Parts Fried 2 | . . . . 2 . Impact Corruptions . | . . . . . . Robots Melted . | . . . . . . Combat Hostiles . | . . . . . . Parts Melted 1 | . 1 . . . . Heat Transferred 1710 | . 1310 37 148 50 165 Parts Sabotaged . | . . . . . . Parts Stolen . | . . . . . . Parts Stripped . | . . . . . . Power Chain Reactions 2 | . 1 . . 1 . Alert | -11 -10 -9 -9 -8 -8 ------- Run | Yrd Mat Mat Min Mat Gar Peak Influence 830 | 30 225 189 140 830 704 Initial 539 | . 19 94 73 54 539 Average 222 | 15 90 114 91 372 612 Maximum Alert Level 3 | . 1 . . 3 3 Low Security (%) 66 | 100 95 100 100 27 . Level 1 13 | . 4 . . 36 . Level 2 14 | . . . . 22 83 Level 3 5 | . . . . 13 16 Level 4 . | . . . . . . Level 5 . | . . . . . . High Security . | . . . . . . Max Security . | . . . . . . Squads Dispatched 7 | . 1 . . 6 . Investigation 1 | . . . . 1 . Extermination . | . . . . . . Reinforcement 3 | . 1 . . 2 . Assault . | . . . . . . Garrison 3 | . . . . 3 . Intercept . | . . . . . . Searches Triggered . | . . . . . . Construction Impeded 1 | . . . . 1 . Haulers Reinforced . | . . . . . . Active Scanning Responses . | . . . . . . Cargo Convoy Interrupts . | . . . . . . Stealth | -11 -10 -9 -9 -8 -8 --------- Run | Yrd Mat Mat Min Mat Gar Distress Signals 6 | . 2 2 . 2 . Communications Jammed . | . . . . . . Distress Signals . | . . . . . . Times Spotted 74 | . 19 11 6 31 7 Peak Tracking Total 10 | . 4 10 2 5 7 Tactical Retreats 6 | . 1 1 . 3 1 Traps | -11 -10 -9 -9 -8 -8 ------- Run | Yrd Mat Mat Min Mat Gar Traps Triggered 3 | . . . . . 3 Indirectly . | . . . . . . Trap Hack Attempts . | . . . . . . Triggered . | . . . . . . Disarmed . | . . . . . . Reprogrammed . | . . . . . . Reused . | . . . . . . Traps Extracted . | . . . . . . Installed . | . . . . . . Triggered . | . . . . . . Machines | -11 -10 -9 -9 -8 -8 ---------- Run | Yrd Mat Mat Min Mat Gar Machines Disabled 8 | . 1 . . 6 1 Max in Single Turn 2 | . 1 . . 2 1 Garrison Relay 1 | . . . . . 1 Machines Repaired . | . . . . . . Machines Dismantled . | . . . . . . Machines Sabotaged . | . . . . . . Overloaded Fab Kills . | . . . . . . Hacking | -11 -10 -9 -9 -8 -8 --------- Run | Yrd Mat Mat Min Mat Gar Machines Accessed 10 | . 1 1 . 7 1 Terminals 8 | . 1 1 . 5 1 Fabricators . | . . . . . . Repair Stations . | . . . . . . Recycling Units 1 | . . . . 1 . Scanalyzers . | . . . . . . Garrison Access 1 | . . . . 1 . Total Hacks 32 | . 4 4 . 20 4 Successful 14 | . 2 2 . 10 . Failed 18 | . 2 2 . 10 4 Catastrophic 3 | . 1 . . 2 . Database Lockouts . | . . . . . . Manual 18 | . 4 2 . 12 . Terminals 26 | . 4 4 . 14 4 Fabricators . | . . . . . . Repair Stations . | . . . . . . Recycling Units 5 | . . . . 5 . Scanalyzers . | . . . . . . Garrison Access 1 | . . . . 1 . Terminal Hacks 3 | . 1 1 . 1 . Terminal Index 1 | . 1 . . . . Zone Layout 2 | . . 1 . 1 . Fabricator Hacks . | . . . . . . Repair Station Hacks . | . . . . . . Recycling Unit Hacks 3 | . . . . 3 . Process 1 | . . . . 1 . Report Inventory 1 | . . . . 1 . Retrieve Components 1 | . . . . 1 . Scanalyzer . | . . . . . . Garrison Access Hacks 1 | . . . . 1 . Unlock Access 1 | . . . . 1 . Unauthorized Hacks 7 | . 1 1 . 5 . Terminals 7 | . 1 1 . 5 . Botnet 7 | . 1 1 . 5 . Fabricators . | . . . . . . Repair Stations . | . . . . . . Recycling Units . | . . . . . . Scanalyzers . | . . . . . . Garrison Access . | . . . . . . Data Cores Recovered . | . . . . . . Used . | . . . . . . Hacking Detections 9 | . 1 1 . 6 1 Full Trace Events 2 | . . . . 1 1 Feedback Events . | . . . . . . Feedback Blocked . | . . . . . . Robot Schematics Acquired . | . . . . . . Robots Built . | . . . . . . Authchips . | . . . . . . Time . | . . . . . . Total Robot Build Rating . | . . . . . . Part Schematics Acquired . | . . . . . . Parts Built . | . . . . . . Authchips . | . . . . . . Time . | . . . . . . Total Part Build Rating . | . . . . . . Parts Repaired . | . . . . . . Time . | . . . . . . Parts Recycled . | . . . . . . Recycled Matter . | . . . . . . Retrieved Matter . | . . . . . . Retrieved Components 2 | . . . . 2 . Parts Scanalyzed . | . . . . . . Part Schematics Acquired . | . . . . . . Parts Damaged . | . . . . . . Bothacking | -11 -10 -9 -9 -8 -8 ------------ Run | Yrd Mat Mat Min Mat Gar Used RIF Installer . | . . . . . . Robots Hacked . | . . . . . . Non-combat . | . . . . . . Combat . | . . . . . . Robot Hacks Applied . | . . . . . . Relay Couplers Released 4 | . . . . . 4 Machine Destruction 4 | . . . . . 4 Fabnet Peak Effective % . | . . . . . . Robots Rewired . | . . . . . . Allies Hacked . | . . . . . . Hacks Repelled . | . . . . . . Allies | -11 -10 -9 -9 -8 -8 -------- Run | Yrd Mat Mat Min Mat Gar Total Allies . | . . . . . . Largest Group . | . . . . . . Highest-Rated Group . | . . . . . . Highest-Rated Ally . | . . . . . . Total Orders . | . . . . . . Ally Attacks . | . . . . . . Total Damage . | . . . . . . Kills . | . . . . . . Allies Corrupted . | . . . . . . Allies Melted . | . . . . . . Intel | -11 -10 -9 -9 -8 -8 ------- Run | Yrd Mat Mat Min Mat Gar Robot Analysis Total . | . . . . . . Derelict Logs Recovered 1 | . . . 1 . . Drone Launches . | . . . . . . Drone Recoveries . | . . . . . . Exploration | -11 -10 -9 -9 -8 -8 ------------- Run | Yrd Mat Mat Min Mat Gar Turns Passed 2398 | 156 789 156 318 781 198 Spaces Moved 1424 | 93 432 103 243 437 116 Core 1 | 1 . . . . . Treads . | . . . . . . Legs . | . . . . . . Wheels 1423 | 92 432 103 243 437 116 Hover . | . . . . . . Flight . | . . . . . . Fastest Speed 50 | 50 100 105 105 105 115 Average Speed 113 | 99 126 105 105 110 115 Slowest Speed 175 | 100 175 105 105 145 115 Overloaded Moves . | . . . . . . Propulsion Burnouts . | . . . . . . Robots Hopped . | . . . . . . Cave-ins Triggered . | . . . . . . Exploration Rate (%) 33 | 5 59 13 54 53 14 Regions Visited 5 Branch Regions 1 Pre-discovered Areas . | . . . . . . Known Exits Taken 1 | . . . . 1 . Unknown Exits Taken 4 | 1 1 1 1 . . Scrap Searched 1 | . . . 1 . . Spaces Dug . | . . . . . . Terrain Destroyed 345 | . 5 . 83 257 . Melee . | . . . . . . Projectile . | . . . . . . AOE 345 | . 5 . 83 257 . Terrain Rammed . | . . . . . . Walls Destroyed . | . . . . . . Machines Disabled . | . . . . . . Actions | -11 -10 -9 -9 -8 -8 --------- Run | Yrd Mat Mat Min Mat Gar Total 2003 | 129 611 149 291 656 167 Wait 230 | . 63 26 22 112 7 Move 1420 | 92 431 102 242 437 116 Hop . | . . . . . . Pick Up 59 | 10 27 9 2 11 . Fast Attach 9 | 6 . . 1 2 . Attach 20 | 2 5 2 . 8 3 Detach . | . . . . . . Swap 26 | . 7 2 4 11 2 Drop 35 | 2 12 5 5 11 . Fire 177 | 17 66 3 15 64 12 Melee . | . . . . . . Ram 3 | . . . . . 3 Kick . | . . . . . . Crush . | . . . . . . Escape Stasis 24 | . . . . . 24 Rewire . | . . . . . . Trap . | . . . . . . Miscellaneous . | . . . . . . Route ------- -11/Scrapyard -10/Materials (discovered 2 exits: *Mat / [*Min]) -9/Materials -9/Mines -8/Materials -8/Garrison History --------- Turn | Location | Event 2 | -11/Scrapyard | Met Revision 17 23 | -11/Scrapyard | Discovered new exit (range 14) 157 | -11/Scrapyard | Entered Materials 305 | -10/Materials | Build established: Mutant 551 | -10/Materials | Discovered new exit (range 6) 673 | -10/Materials | Core integrity fell below 50% 715 | -10/Materials | Discovered new exit (range 16) 946 | -10/Materials | Entered another Materials area 946 | -9/Materials | Evolved 2 slots: Propulsion x2 1069 | -9/Materials | Discovered new exit (range 19) 1102 | -9/Materials | Entered Mines 1106 | -9/Mines | Assembled infested the area 1110 | -9/Mines | Learned Materials stockpile data 1111 | -9/Mines | Assisted by a Guerilla fighting off Assembled 1152 | -9/Mines | Received a Rocket Launcher from a helpful Derelict 1410 | -9/Mines | Discovered new exit (range 7) 1420 | -9/Mines | Entered Materials 1420 | -8/Materials | Evolved 2 slots: Utility x2 1756 | -8/Materials | Garrison activated, responded to threat 2007 | -8/Materials | Lost 3 parts (1n1u1w) 2071 | -8/Materials | Core integrity fell below 50% 2113 | -8/Materials | Lost 3 parts (1p1u1w) 2201 | -8/Materials | Identified exit to Garrison 2201 | -8/Materials | Entered Garrison 2223 | -8/Garrison | Triggered checkpoint 2271 | -8/Garrison | Garrison Relay disabled 2360 | -8/Garrison | Core integrity fell below 20% 2399 | -8/Garrison | Destroyed by G-47 Trooper with Particle Gun Last Messages --------------- Field strength at 30. Field strength at 20. Field strength at 10. Stasis field depleted. Connecting with Garrison Terminal... ALERT: Suspicious activity at Terminal G003. Transmitting hostile system tracking data. S-10 Pest destroyed. C-30 ARC bursts open, deploying its payload. G-50 Soldier unfolds itself. G-47 Trooper unfolds itself. Missile Launcher destroyed. S-10 Pest destroyed. Beam Cannon destroyed. Slammed into G-47 Trooper. Slammed into G-50 Soldier. Sensor Array destroyed. Critical hit (Burn: +37). Slammed into G-47 Trooper. Deuterium Engine destroyed. Map ----- +----------------------------------------------------+ | ?????????????????????????????????????????????????? | | ?????????????????????????????????????????????????? | | ?????????????????????????????????????????????????? | | ?????????????????????????????????????????????????? | | ?????????????????????????????????????????????????? | | ???????????????????????#######???????????????????? | | ???????????????????????# #???????????????????? | | ???????????????????????# #???????????????????? | | ???????????????????????# #???????????????????? | | ???????????????????????# ###???????????????????? | | ???????????????????????# #?????????????????????? | | ???????????????????????# #?????????????????????? | | ???????????????????????# #?????????????????????? | | ???????????????????????# #?????????????????????? | | ???????????????????????# #?????????????????????? | | ???????????????????????# #?????????????????????? | | ???????????????????????# #?????????????????????? | | ???????????????????????# #?????????????????????? | | ???????????????????????# #?????????????????????? | | ???????????????????????# #?????????????????????? | | ???????????????????????# #######???????????????? | | ???????????????????????# g #???????????????? | | ???????????????????????# g #???????????????? | | ???????????????????????# #### #???????????????? | | ???????????????????????# g #??# ###?????????????? | | ???????????????????????# @ #??# #?????????????? | | ???????????????????????# #??# #?????????????? | | ???????????????????????# #??# #?????????????? | | ???????????????????????# #??# ###?????????????? | | ???????????????????????# #??# ^#???????????????? | | ???????????????????????# #??# #???????????????? | | ???????????????????????# #??# ###?????????????? | | ???????????????????????# #??# #"#?????????????? | | ???????????????????????# #??# !"#?????????????? | | ???????????????????????# g#??# !!#?????????????? | | ????????????????## ##### #??#^ !"#?????????????? | | ??????????????# %+ #??# #"#?????????????? | | ????????????????######## #??######?????????????? | | ???????#%??????????????# ##????????????????????? | | ??????##[ ############ T#????????????????????? | | ????? ^ ##????????????????????? | | ????? " #?????????????????????? | | ????? "%" #?????????????????????? | | ???????# ## " ###########?????????????????????? | | ?????????????# ??????????????????????????????????? | | ?????????????????????????????????????????????????? | | ?????????????????????????????????????????????????? | | ?????????????????????????????????????????????????? | | ?????????????????????????????????????????????????? | | ?????????????????????????????????????????????????? | +----------------------------------------------------+ Best States ------------- Heat Dissipation 31 Energy Generation 14 Energy Capacity 275 Matter Stores 300 Matter Capacity 300 Sight Range 16 Robot Scan Range 15 Terrain Scan Density 10 Evasion (%) 40 Defensive Hacking 10 Item Schematics ----------------- None Robot Schematics ------------------ None Fabricated ------------ Nothing Alien Tech Used ----------------- None Achievements -------------- None Challenges ------------ None Game ------ Seed SupercompositeArmoredRouter Manual? 0 Play Time 00:49:08 Cumulative 7.8 hours Start 2024.10.11 @ 16:38:47 End 2024.10.11 @ 17:28:03 Sessions 1 Manual Loads 0 Difficulty Rogue Special Mode None Game No. 12 Rogue 12 Adventurer 0 Explorer 0 Win Type - Total 0 Types 0/0/0/0/0/0/0/0/0 Lore% 4 Gallery% 10 Achievement% 14 Wizard Run 0 Options --------- Layout 0 ASCII 0 Keyboard 0 Movement Mouse Keybinds 0 Fullscreen 2 Font 24/Smallcaps Map View 76x50 Zoom Use 0% Tactical HUD 0 Map Filters NONE Filters NONE Steam 1 RUN: ac99453b-6273-4d03-8733-ef4fe24015d0